fUST/lending_fUST_20240816
["ID","MTS","AMOUNT","RATE_DAILY","PERIOD"]
[335023074,1723752648890,-158.271088,0.00041553,120]
[335023075,1723752648900,-968.322,0.00042167,2]
[335023076,1723752648910,-151.0,0.00042352,14]
[335023077,1723752648920,-151.0,0.00042352,14]
[335023078,1723752648930,-151.0,0.00042352,14]
[335023079,1723752648942,-195.76334131,0.00045471,28]
[335023080,1723752648951,-269.3664726,0.00046411,2]
[335023081,1723752648961,-268.0270281,0.00046411,2]
[335023082,1723752648971,-268.0270281,0.00046411,2]
[335023083,1723752648980,-268.0270281,0.00046411,2]
[335023084,1723752648990,-268.0270281,0.00046411,2]
[335023085,1723752648999,-194.928163,0.00046464,14]
[335023086,1723752649009,-194.928163,0.00046464,14]
[335023087,1723752649018,-151.0,0.00046464,14]
[335023088,1723752649028,-151.0,0.00046464,14]
[335023089,1723752649037,-151.0,0.00046464,14]
[335023090,1723752649048,-179.694192,0.00046464,14]
[335023091,1723752649058,-151.0,0.00046475,14]
[335023092,1723752649067,-151.0,0.00046475,14]
[335023093,1723752649077,-194.928163,0.00046475,14]
[335023094,1723752649086,-194.928163,0.00046475,14]
[335023095,1723752649095,-151.0,0.00046475,14]
[335023096,1723752649106,-284.31014,0.00046475,14]
[335023097,1723752649115,-151.0,0.00046475,14]
[335023098,1723752649125,-784.89643041,0.00046475,2]
[335023099,1723752649135,-6914.62944673,0.00046475,120]
[335023100,1723752649144,-28842.4378938,0.00046533,5]
[335023101,1723752649154,-151.0,0.00046542,14]
[335023102,1723752649164,-1277.60231697,0.00046543,2]
[335023103,1723752649174,-151.0,0.00046552,14]
[335023104,1723752649183,-151.0,0.00046552,14]
[335023105,1723752649192,-184.13999,0.00046553,14]
[335023106,1723752649201,-151.0,0.00046553,14]
[335023107,1723752649211,-151.0,0.00046553,14]
[335023108,1723752649220,-151.0,0.00046553,14]
[335023109,1723752649229,-151.0,0.00046553,14]
[335023110,1723752649238,-151.0,0.00046553,14]
[335023111,1723752649248,-194.928163,0.00046554,14]
[335023112,1723752649261,-194.928163,0.00046554,14]
[335023113,1723752649271,-151.0,0.00046554,14]
[335023114,1723752649281,-171.927556,0.00046563,14]
[335023115,1723752649291,-151.0,0.00046564,14]
[335023116,1723752649302,-500.0,0.00046564,60]
[335023117,1723752649311,-151.0,0.00046564,14]
[335023118,1723752649321,-500.0,0.00046564,120]
[335023119,1723752649331,-194.928163,0.00046564,14]
[335023120,1723752649341,-194.928163,0.00046564,14]
[335023121,1723752649350,-194.928163,0.00046564,14]
[335023122,1723752649359,-194.928163,0.00046564,14]
[335023123,1723752649369,-194.928163,0.00046564,14]
[335023124,1723752649379,-194.928163,0.00046564,14]
[335023125,1723752649389,-194.928163,0.00046564,14]
[335023126,1723752649399,-194.928163,0.00046564,14]
[335023127,1723752649408,-194.928163,0.00046564,14]
[335023128,1723752649417,-194.928171,0.00046564,14]
[335023129,1723752649426,-36027.52434566,0.00046565,5]
[335023130,1723752649441,-1563.999095,0.00046565,5]
[335023131,1723752649453,-3802.11696464,0.00046565,5]
[335023132,1723752651750,217.39016863,9.9e-05,2]
[335023133,1723752706252,3611.12283265,9.9e-05,2]
[335023135,1723752727564,4361.59518958,9.9e-05,2]
[335023136,1723752730960,3790.73080632,9.9e-05,2]
[335023137,1723752735284,1384.50193288,9e-05,2]
[335023139,1723752764430,155.10510622,9e-05,2]
[335023140,1723752775418,405.19320777,9e-05,2]
[335023141,1723752779008,192.68314799,9e-05,2]
[335023142,1723752779506,2111.27572321,9e-05,2]
[335023143,1723752782472,218.59781191,9e-05,2]
[335023144,1723752793259,3592.58480513,9e-05,2]
[335023146,1723752856969,3789.55588734,9e-05,2]
[335023148,1723752899682,16305.56528498,9e-05,2]
[335023152,1723753396644,2280.6099092,0.00010081,3]
[335023153,1723753462531,1670.74719108,0.00010081,2]
[335023154,1723753539151,-246.13967301,0.000119,2]
[335023161,1723753652110,-2905.28689748,0.000119,2]
[335023162,1723753652142,-603.4602457,0.00012999,2]
[335023163,1723753652169,-154.76012181,0.00013051,2]
[335023164,1723753652199,-336.59268156,0.000136,2]
[335023165,1723753652228,-163.23069,0.00014066,2]
[335023166,1723753652254,-163.23069,0.00014157,2]
[335023167,1723753652276,-164.775977,0.00014247,2]
[335023168,1723753652304,-163.23069,0.00014249,2]
[335023169,1723753652332,-163.23069,0.0001434,2]
[335023170,1723753652356,-163.23069,0.00014432,2]
[335023171,1723753652385,-163.23069,0.00014524,2]
[335023172,1723753652416,-163.23069,0.00014615,2]
[335023173,1723753652444,-163.23069,0.00014707,2]
[335023174,1723753652468,-163.23069,0.00014799,2]
[335023175,1723753652490,-3000.0,0.000149,2]
[335023176,1723753652514,-168.944669,0.00014949,2]
[335023177,1723753652538,-154.89911116,0.00015,2]
[335023178,1723753652567,-782.12449386,0.00015,2]
[335023179,1723753652594,-300.0,0.00016069,2]
[335023180,1723753652619,-8838.78926469,0.0001607,2]
[335023203,1723753728782,3606.1291612,0.0001,2]
[335023204,1723753752246,-400.0,0.00014519,2]
[335023205,1723753752270,-16061.21073531,0.0001607,2]
[335023206,1723753752292,-162.972932,0.00019178,2]
[335023207,1723753752315,-251.0,0.00019178,2]
[335023208,1723753752338,-285.08347757,0.00019478,2]
[335023209,1723753752363,-975.26715863,0.00019899,2]
[335023210,1723753752387,-10961.64818618,0.0001999,2]
[335023218,1723753767087,-4469.25978896,0.0001999,2]
[335023269,1723753833049,-2280.6099092,0.0001999,2]
[335023270,1723753835731,273.37336231,9.9e-05,2]
[335023295,1723753840340,-703.76194086,0.0001999,2]
[335023297,1723753840349,-300.50416595,0.0002,2]
[335023299,1723753840359,-40606.17876075,0.0002,2]
[335023317,1723753840529,-4152.2093053,0.0002,2]
[335023320,1723753840545,-34061.47485517,0.0002,2]
[335023322,1723753840555,-10502.54869245,0.0002,2]
[335023324,1723753840564,-245.042286,0.0002,2]
[335023325,1723753840573,-150.0,0.00021,2]
[335023326,1723753840582,-157.14199098,0.000212,30]
[335023327,1723753840591,-290.614392,0.00021373,2]
[335023328,1723753840601,-150.112233,0.000218,4]
[335023329,1723753840609,-500.0,0.00021977,2]
[335023330,1723753840618,-500.0,0.00021977,2]
[335023331,1723753840627,-174.44673941,0.00021977,2]
[335023332,1723753840636,-500.0,0.00021977,2]
[335023333,1723753840647,-500.0,0.00021977,2]
[335023334,1723753840657,-500.0,0.00021977,2]
[335023335,1723753840666,-500.0,0.00021977,2]
[335023336,1723753840675,-500.0,0.00021977,2]
[335023337,1723753840684,-500.0,0.00021977,2]
[335023338,1723753840694,-476.31428428,0.00021977,2]
[335023339,1723753840703,-500.0,0.00021977,2]
[335023340,1723753840712,-500.0,0.00021977,2]
[335023341,1723753840724,-500.0,0.00021977,2]
[335023342,1723753840733,-500.0,0.00021977,2]
[335023343,1723753840742,-500.0,0.00021977,2]
[335023344,1723753840751,-500.0,0.00021977,2]
[335023345,1723753840761,-500.0,0.00021977,2]
[335023346,1723753840771,-215.72250291,0.00021977,2]
[335023347,1723753840780,-500.0,0.00021977,2]
[335023348,1723753840790,-500.0,0.00021977,2]
[335023349,1723753840799,-500.0,0.00021977,2]
[335023350,1723753840808,-500.0,0.00021977,2]
[335023351,1723753840817,-500.0,0.00021977,2]
[335023352,1723753840827,-500.0,0.00021977,2]
[335023353,1723753840836,-500.0,0.00021977,2]
[335023354,1723753840845,-500.0,0.00021977,2]
[335023355,1723753840854,-500.0,0.00021977,2]
[335023356,1723753840864,-500.0,0.00021977,2]
[335023357,1723753840873,-500.0,0.00021977,2]
[335023358,1723753840883,-500.0,0.00021977,2]
[335023359,1723753840893,-500.0,0.00021977,2]
[335023360,1723753840902,-500.0,0.00021977,2]
[335023361,1723753840912,-500.0,0.00021977,2]
[335023362,1723753840922,-500.0,0.00021977,2]
[335023363,1723753840931,-500.0,0.00021977,2]
[335023364,1723753840941,-500.0,0.00021977,2]
[335023365,1723753840950,-500.0,0.00021977,2]
[335023366,1723753840959,-500.0,0.00021977,2]
[335023367,1723753840969,-500.0,0.00021977,2]
[335023368,1723753840978,-500.0,0.00021977,2]
[335023369,1723753840987,-500.0,0.00021977,2]
[335023370,1723753840998,-500.0,0.00021977,2]
[335023371,1723753841007,-500.0,0.00021977,2]
[335023372,1723753841017,-500.0,0.00021977,2]
[335023373,1723753841027,-500.0,0.00021977,2]
[335023374,1723753841038,-500.0,0.00021977,2]
[335023375,1723753841047,-500.0,0.00021977,2]
[335023376,1723753841057,-500.0,0.00021977,2]
[335023377,1723753841066,-500.0,0.00021977,2]
[335023378,1723753841075,-500.0,0.00021977,2]
[335023379,1723753841085,-500.0,0.00021977,2]
[335023380,1723753841094,-18415.2798252,0.00021978,3]
[335023381,1723753841103,-151.0,0.00021988,7]
[335023382,1723753841111,-595.74179,0.00021988,7]
[335023383,1723753841121,-595.74179,0.00021988,7]
[335023384,1723753841130,-151.0,0.00021988,7]
[335023385,1723753841139,-151.0,0.00021988,7]
[335023386,1723753841148,-151.0,0.00021988,7]
[335023387,1723753841157,-250.94975,0.00021988,7]
[335023388,1723753841166,-151.0,0.00021988,7]
[335023389,1723753841175,-472.69555,0.00021988,7]
[335023390,1723753841185,-472.69555,0.00021988,7]
[335023391,1723753841194,-488.41971,0.00021988,7]
[335023392,1723753841203,-488.41971,0.00021988,7]
[335023393,1723753841212,-1468.975416,0.00021988,7]
[335023394,1723753841222,-1468.975416,0.00021988,7]
[335023395,1723753841231,-151.0,0.00021988,2]
[335023396,1723753841241,-151.0,0.00021988,2]
[335023397,1723753841252,-517.537528,0.00021988,7]
[335023398,1723753841390,-517.537528,0.00021988,7]
[335023399,1723753841399,-430.904288,0.00021988,7]
[335023400,1723753841409,-430.904288,0.00021988,7]
[335023401,1723753841419,-151.0,0.00021988,7]
[335023402,1723753841427,-151.0,0.00021988,7]
[335023403,1723753841437,-166.246058,0.00021988,7]
[335023404,1723753841447,-166.246058,0.00021988,7]
[335023405,1723753841456,-252.386694,0.00021988,7]
[335023406,1723753841466,-151.0,0.00021988,7]
[335023407,1723753841476,-252.386694,0.00021988,7]
[335023408,1723753841485,-151.0,0.0002199,7]
[335023409,1723753841495,-151.0,0.0002199,7]
[335023410,1723753841504,-398.214642,0.0002199,7]
[335023411,1723753841513,-398.214642,0.0002199,7]
[335023412,1723753841522,-151.0,0.0002199,7]
[335023413,1723753841532,-151.0,0.0002199,7]
[335023414,1723753841542,-151.0,0.0002199,7]
[335023415,1723753841554,-378.544615,0.0002199,7]
[335023416,1723753841564,-378.544615,0.0002199,7]
[335023417,1723753841574,-4355.58953354,0.00022,30]
[335023418,1723753841584,-154.80649189,0.00022,2]
[335023419,1723753841595,-302.57643837,0.00022,2]
[335023420,1723753841605,-302.57643837,0.0002222,2]
[335023421,1723753841615,-168.944669,0.00022423,2]
[335023422,1723753841626,-302.57643837,0.0002244,2]
[335023423,1723753841636,-302.57643837,0.0002266,2]
[335023424,1723753841648,-302.57643837,0.0002288,2]
[335023425,1723753841658,-453.86465756,0.000231,4]
[335023426,1723753841667,-303.63403565,0.0002332,4]
[335023427,1723753841677,-150.112233,0.000236,4]
[335023428,1723753841688,-164.775977,0.00023688,2]
[335023429,1723753841697,-41929.68964428,0.00024,60]
[335023430,1723753841707,-151.0,0.00024,7]
[335023431,1723753841716,-151.0,0.00024,7]
[335023432,1723753841726,-166.246058,0.00024,7]
[335023433,1723753841736,-166.246058,0.00024,7]
[335023434,1723753841746,-252.386694,0.00024,7]
[335023435,1723753841755,-151.0,0.00024,7]
[335023436,1723753841765,-151.0,0.00024,7]
[335023437,1723753841774,-252.386694,0.00024,7]
[335023438,1723753841783,-10337.19273734,0.00024498,2]
[335023439,1723753841794,-5242.02170044,0.00024637,2]
[335023440,1723753841803,-151.0,0.00024656,7]
[335023441,1723753841813,-151.0,0.00024656,7]
[335023442,1723753841823,-151.0,0.00024656,7]
[335023443,1723753841832,-151.0,0.00024656,7]
[335023444,1723753841841,-472.69555,0.00024656,7]
[335023445,1723753841853,-310.0,0.00024656,2]
[335023446,1723753841863,-455.062982,0.00024656,2]
[335023447,1723753841872,-472.69555,0.00024656,7]
[335023448,1723753841883,-882.43417531,0.00024657,2]
[335023449,1723753841893,-154.76012181,0.00024658,2]
[335023450,1723753841904,-1110.29005483,0.00024658,2]
[335023451,1723753841913,-277.52010074,0.00024662,2]
[335023452,1723753841923,-2606.26346968,0.00024662,2]
[335023453,1723753841932,-277.52010074,0.00024662,2]
[335023454,1723753841942,-2606.26346968,0.00024662,2]
[335023455,1723753841951,-285.31252066,0.00024662,2]
[335023456,1723753841961,-435.0,0.00024688,2]
[335023457,1723753841970,-488.41971,0.00024728,7]
[335023458,1723753841979,-488.41971,0.00024728,7]
[335023459,1723753841988,-1468.975416,0.00024728,7]
[335023460,1723753841997,-1468.975416,0.00024728,7]
[335023461,1723753842007,-151.0,0.00024728,2]
[335023462,1723753842016,-151.0,0.00024728,2]
[335023463,1723753842026,-517.537528,0.00024728,7]
[335023464,1723753842035,-517.537528,0.00024728,7]
[335023465,1723753842045,-430.904288,0.00024728,7]
[335023466,1723753842054,-430.904288,0.00024728,7]
[335023467,1723753842064,-271.33563937,0.00024756,2]
[335023468,1723753842073,-18415.2798252,0.00024783,3]
[335023469,1723753842082,-151.0,0.00024783,7]
[335023470,1723753842091,-151.0,0.00024783,7]
[335023471,1723753842100,-166.246058,0.00024783,7]
[335023472,1723753842109,-166.246058,0.00024783,7]
[335023473,1723753842119,-252.386694,0.00024783,7]
[335023474,1723753842128,-252.386694,0.00024783,7]
[335023475,1723753842138,-151.0,0.00024783,7]
[335023476,1723753842147,-595.74179,0.00024793,7]
[335023477,1723753842156,-466.544928,0.00024793,7]
[335023478,1723753842165,-595.74179,0.00024793,7]
[335023479,1723753842174,-378.544615,0.00024793,7]
[335023480,1723753842183,-378.544615,0.00024793,7]
[335023481,1723753842193,-151.0,0.00024793,7]
[335023482,1723753842203,-1026.037424,0.00024793,7]
[335023483,1723753842212,-1243.327663,0.00024793,7]
[335023484,1723753842221,-151.0,0.00024793,7]
[335023485,1723753842231,-1026.037424,0.00024793,7]
[335023486,1723753842240,-1243.327663,0.00024793,7]
[335023487,1723753842249,-151.0,0.00024793,7]
[335023488,1723753842258,-151.0,0.00024793,7]
[335023489,1723753842267,-488.41971,0.00024803,7]
[335023490,1723753842277,-488.41971,0.00024803,7]
[335023491,1723753842288,-1468.975416,0.00024803,7]
[335023492,1723753842296,-1468.975416,0.00024803,7]
[335023493,1723753842306,-151.0,0.00024803,2]
[335023494,1723753842315,-151.0,0.00024803,2]
[335023495,1723753842324,-517.537528,0.00024803,7]
[335023496,1723753842333,-517.537528,0.00024803,7]
[335023497,1723753842342,-430.904288,0.00024803,7]
[335023498,1723753842351,-430.904288,0.00024803,7]
[335023499,1723753842360,-151.0,0.00024847,7]
[335023500,1723753842369,-151.0,0.00024847,7]
[335023501,1723753842378,-151.0,0.00024847,7]
[335023502,1723753842387,-151.0,0.00024847,7]
[335023503,1723753842396,-151.0,0.00024847,7]
[335023504,1723753842406,-472.69555,0.00024847,7]
[335023505,1723753842415,-472.69555,0.00024847,7]
[335023506,1723753842424,-151.0,0.00024944,7]
[335023507,1723753842433,-495.900848,0.00024944,7]
[335023508,1723753842441,-495.900848,0.00024944,7]
[335023509,1723753842451,-398.214642,0.00024944,7]
[335023510,1723753842461,-398.214642,0.00024944,7]
[335023511,1723753842470,-151.0,0.00024944,7]
[335023512,1723753842479,-500.0,0.00024972,2]
[335023513,1723753842488,-500.0,0.00024972,2]
[335023514,1723753842497,-166.59720945,0.00024972,2]
[335023515,1723753842506,-270.07667235,0.00024972,2]
[335023516,1723753842515,-500.0,0.00024972,2]
[335023517,1723753842525,-500.0,0.00024972,2]
[335023518,1723753842536,-500.0,0.00024972,2]
[335023519,1723753842549,-500.0,0.00024972,2]
[335023520,1723753842558,-500.0,0.00024972,2]
[335023521,1723753842567,-500.0,0.00024972,2]
[335023522,1723753842576,-361.02428421,0.00024972,2]
[335023523,1723753842585,-500.0,0.00024972,2]
[335023524,1723753842594,-500.0,0.00024972,2]
[335023525,1723753842603,-500.0,0.00024972,2]
[335023526,1723753842614,-595.74179,0.00024974,7]
[335023527,1723753842624,-466.544928,0.00024974,7]
[335023528,1723753842634,-595.74179,0.00024974,7]
[335023529,1723753842648,-378.544615,0.00024974,7]
[335023530,1723753842658,-378.544615,0.00024974,7]
[335023531,1723753842668,-151.0,0.00024974,7]
[335023532,1723753842677,-151.0,0.00024974,7]
[335023533,1723753842687,-151.0,0.00024974,7]
[335023534,1723753842696,-151.0,0.00024974,7]
[335023535,1723753842705,-472.69555,0.00024974,7]
[335023536,1723753842714,-472.69555,0.00024974,7]
[335023537,1723753842724,-488.41971,0.00024974,7]
[335023538,1723753842733,-488.41971,0.00024974,7]
[335023539,1723753842742,-1468.975416,0.00024974,7]
[335023540,1723753842752,-1468.975416,0.00024974,7]
[335023541,1723753842761,-151.0,0.00024974,2]
[335023542,1723753842770,-176.805344,0.00024974,2]
[335023543,1723753842779,-517.537528,0.00024974,7]
[335023544,1723753842791,-517.537528,0.00024974,7]
[335023545,1723753842800,-430.904288,0.00024974,7]
[335023546,1723753842810,-430.904288,0.00024974,7]
[335023548,1723753842820,-151.0,0.00024984,7]
[335023549,1723753842829,-151.0,0.00024984,7]
[335023550,1723753842839,-495.900848,0.00024984,7]
[335023551,1723753842849,-179.780617,0.00024984,7]
[335023552,1723753842859,-495.900848,0.00024984,7]
[335023553,1723753842869,-398.214642,0.00024984,7]
[335023554,1723753842879,-398.214642,0.00024984,7]
[335023555,1723753842889,-151.0,0.00024984,7]
[335023556,1723753842899,-151.0,0.00024984,7]
[335023557,1723753842908,-151.0,0.00024984,7]
[335023558,1723753842918,-151.0,0.00024984,7]
[335023559,1723753842928,-1026.037424,0.00024984,7]
[335023560,1723753842938,-1243.327663,0.00024984,7]
[335023561,1723753842948,-151.0,0.00024984,7]
[335023562,1723753842957,-1026.037424,0.00024984,7]
[335023563,1723753842967,-1243.327663,0.00024984,7]
[335023564,1723753842976,-151.0,0.00024984,7]
[335023565,1723753842985,-151.0,0.00024984,7]
[335023566,1723753842995,-151.0,0.00024984,7]
[335023567,1723753843004,-151.0,0.00024984,7]
[335023568,1723753843013,-166.246058,0.00024984,7]
[335023569,1723753843023,-252.386694,0.00024984,7]
[335023570,1723753843032,-166.246058,0.00024984,7]
[335023571,1723753843042,-252.386694,0.00024984,7]
[335023572,1723753843051,-151.0,0.00024984,7]
[335023573,1723753843061,-150.112233,0.00025,3]
[335023574,1723753843071,-151.0,0.00025389,7]
[335023575,1723753843080,-150.112233,0.000254,10]
[335023576,1723753843089,-2000.0,0.00026207,2]
[335023577,1723753843098,-2000.0,0.00026216,2]
[335023578,1723753843108,-2000.0,0.00026225,2]
[335023579,1723753843117,-2000.0,0.00026234,2]
[335023580,1723753843127,-150.112233,0.000271,8]
[335023581,1723753843136,-18415.2798252,0.00027104,3]
[335023582,1723753843145,-378.544615,0.00027114,7]
[335023583,1723753843154,-378.544615,0.00027114,7]
[335023584,1723753843163,-151.0,0.00027114,7]
[335023585,1723753843173,-151.0,0.00027114,7]
[335023586,1723753843182,-151.0,0.00027114,7]
[335023587,1723753843191,-151.0,0.00027114,7]
[335023588,1723753843200,-472.69555,0.00027114,7]
[335023589,1723753843209,-472.69555,0.00027114,7]
[335023590,1723753843218,-151.0,0.00027114,7]
[335023591,1723753843227,-151.0,0.00027114,7]
[335023592,1723753843236,-166.246058,0.00027114,7]
[335023593,1723753843247,-252.386694,0.00027114,7]
[335023594,1723753843259,-166.246058,0.00027114,7]
[335023595,1723753843269,-252.386694,0.00027114,7]
[335023596,1723753843279,-151.0,0.00027114,7]
[335023597,1723753843289,-150.112233,0.000272,6]
[335023598,1723753843298,-3306.11265836,0.0002799,2]
[335023599,1723753843307,-150.112233,0.000289,10]
[335023600,1723753843317,-150.112233,0.000294,8]
[335023601,1723753843326,-150.112233,0.000307,5]
[335023602,1723753843337,-19485.9384109,0.00030773,30]
[335023603,1723753843346,-151.0,0.00030774,7]
[335023604,1723753843355,-1026.037424,0.00030774,7]
[335023605,1723753843365,-1243.327663,0.00030774,7]
[335023606,1723753843376,-1026.037424,0.00030774,7]
[335023607,1723753843387,-1243.327663,0.00030774,7]
[335023608,1723753843397,-151.0,0.00030774,7]
[335023610,1723753843409,-151.0,0.00030774,7]
[335023612,1723753843419,-150.112233,0.000315,10]
[335023614,1723753843429,-706.40678736,0.000324,2]
[335023616,1723753843438,-595.74179,0.0003249,7]
[335023618,1723753843450,-466.544928,0.0003249,7]
[335023619,1723753843461,-595.74179,0.0003249,7]
[335023620,1723753843472,-378.544615,0.0003249,7]
[335023621,1723753843482,-378.544615,0.0003249,7]
[335023622,1723753843492,-151.0,0.0003249,7]
[335023623,1723753843503,-151.0,0.0003249,7]
[335023624,1723753843513,-151.0,0.0003249,7]
[335023625,1723753843523,-472.69555,0.0003249,7]
[335023626,1723753843533,-472.69555,0.0003249,7]
[335023627,1723753843548,-488.41971,0.0003249,7]
[335023629,1723753843557,-488.41971,0.0003249,7]
[335023631,1723753843567,-147322.238601,0.0003249,4]
[335023632,1723753843578,-1468.975416,0.0003249,7]
[335023633,1723753843588,-1468.975416,0.0003249,7]
[335023635,1723753843598,-151.0,0.0003249,2]
[335023637,1723753843608,-517.537528,0.0003249,7]
[335023639,1723753843617,-517.537528,0.0003249,7]
[335023641,1723753843628,-430.904288,0.0003249,7]
[335023642,1723753843638,-430.904288,0.0003249,7]
[335023643,1723753843651,-151.0,0.0003249,7]
[335023644,1723753843661,-237.384306,0.0003249,7]
[335023645,1723753843670,-166.246058,0.0003249,7]
[335023646,1723753843680,-166.246058,0.0003249,7]
[335023647,1723753843691,-252.386694,0.0003249,7]
[335023648,1723753843700,-166.246058,0.0003249,7]
[335023649,1723753843711,-252.386694,0.0003249,7]
[335023650,1723753843720,-166.246058,0.0003249,7]
[335023651,1723753843731,-252.386694,0.0003249,7]
[335023652,1723753843742,-151.0,0.0003249,7]
[335023653,1723753843752,-151.0,0.0003249,7]
[335023654,1723753843763,-252.386694,0.0003249,7]
[335023655,1723753843773,-3353.4235956,0.000325,60]
[335023656,1723753843973,-151.0,0.00021988,7]
[335023657,1723753843984,-817.96,0.0002399,3]
[335023658,1723753843993,-151.0,0.00024,7]
[335023659,1723753844002,-154.80649189,0.00024662,2]
[335023660,1723753844011,-160.73794928,0.00024728,2]
[335023661,1723753844020,-963.93475294,0.000325,60]
[335023681,1723753846499,-221.42548597,0.0002423,2]
[335023682,1723753846509,-151.0,0.00024783,7]
[335023683,1723753846519,-221.661618,0.00024984,7]
[335023684,1723753846528,-67165.00354256,0.000325,60]
[335023685,1723753846541,-646.26892811,0.000325,60]
[335023686,1723753846552,-177709.69266856,0.000325,60]
[335023687,1723753846564,-6693.1640257,0.000325,60]
[335023688,1723753846587,-39.78810137,0.000325,60]
[335023689,1723753851017,400.0,0.00027,120]
[335023725,1723754747095,-850.51877308,0.00012971,2]
[335023726,1723754747118,-305.86443105,0.00012989,2]
[335023727,1723754747140,-403.6504886,0.00012991,2]
[335023728,1723754747162,-110.81664024,0.00012991,2]
[335023730,1723754836097,-601.63686439,0.00012985,2]
[335023731,1723754836119,-320.14177954,0.00012989,2]
[335023732,1723754836140,-753.97168422,0.00012989,2]
[335023733,1723754836162,-413.41235077,0.00012989,2]
[335023734,1723754836183,-328.4045398,0.00012989,2]
[335023741,1723754967152,-154.77557542,0.00012971,2]
[335023742,1723754967175,-210.10628593,0.00012971,2]
[335023743,1723754967201,-511.67780438,0.00012971,2]
[335023744,1723754967223,-180.67948358,0.00012971,2]
[335023745,1723754967246,-196.63865106,0.00012985,2]
[335023746,1723754967268,-155.25873292,0.00012985,2]
[335023747,1723754967291,-174.75672236,0.00012985,2]
[335023748,1723754967313,-154.86054764,0.00012989,2]
[335023749,1723754967335,-155.0763182,0.00012991,2]
[335023750,1723754967358,-296.8599257,0.00013025,2]
[335023751,1723754967380,-154.77557542,0.00013025,2]
[335023752,1723754967403,-339.94614762,0.00013025,2]
[335023753,1723754967426,-19142.1655703,0.00013026,2]
[335023754,1723754967450,-665.04001235,0.00013051,2]
[335023755,1723754967473,-165.905,0.00013353,2]
[335023756,1723754967495,-608.58295663,0.00013477,2]
[335023757,1723754967517,-309.52024362,0.00013477,2]
[335023758,1723754967539,-165.905,0.00013493,2]
[335023759,1723754967560,-300.0,0.00013495,2]
[335023760,1723754967721,-300.0,0.00013495,2]
[335023761,1723754967744,-543.67907992,0.00013497,2]
[335023762,1723754967766,-309.67712516,0.00013599,2]
[335023763,1723754967790,-165.905,0.00013632,2]
[335023764,1723754967811,-933.23052242,0.00013697,2]
[335023765,1723754967841,-192.30476635,0.00013697,2]
[335023766,1723754967862,-168.94467,0.00013699,2]
[335023767,1723754967882,-3000.0,0.00013699,2]
[335023768,1723754967904,-165.905,0.00013771,2]
[335023769,1723754967924,-165.905,0.0001391,2]
[335023770,1723754967946,-165.905,0.00014049,2]
[335023771,1723754967966,-164.775977,0.00014247,2]
[335023772,1723754967986,-490.56454085,0.00014519,2]
[335023773,1723754968005,-320.02539096,0.00014519,2]
[335023774,1723754968028,-494.81071941,0.00014519,2]
[335023775,1723754968049,-420.0,0.00014845,2]
[335023776,1723754968071,-240.8052254,0.00015744,2]
[335023777,1723754968092,-587.0,0.00016329,2]
[335023778,1723754968115,-889.88603454,0.00017189,2]
[335023779,1723754968137,-525.27871366,0.00017962,2]
[335023780,1723754970111,-297.72128634,0.00017962,2]
[335023781,1723754970133,-162.972932,0.00019178,2]
[335023782,1723754970154,-251.0,0.00019178,2]
[335023783,1723754970175,-156.56267046,0.0002,2]
[335023784,1723754970207,-3000.0,0.00021,2]
[335023785,1723754970229,-466.26973504,0.0002101,2]